[Event "Modransky Cup 2025"]
[Site "Modra"]
[Date "2025.02.22"]
[Round "5.3"]
[White "Smetana, Peter"]
[Black "Iankin, Arseni"]
[Result "1-0"]
[Annotator "NA"]
[ECO "C13"]
[WhiteElo "1947"]
[BlackElo "2016"]
[PlyCount "69"]
[EventDate "2025.02.20"]
[EventCountry "SVK"]
[SourceTitle "playchess.com"]
[Source "ChessBase"]
[SourceQuality "1"]
[TimeControl "5400+30"]

1. e4 {[%emt 0:00:06]} e6 {[%emt 0:00:41]} 2. d4 {[%emt 0:00:37]} d5 {[%emt 0:00:08]} 3. Nc3 {[%emt 0:00:06]} Nf6 {[%emt 0:00:04]} 4. Bg5 {[%emt 0:00:13]} dxe4 {[%emt 0:00:03]} 5. Nxe4 {[%emt 0:00:17]} Be7 {[%emt 0:00:04]} 6. Bxf6 {[%emt 0:00:16]} gxf6 {[%emt 0:00:07]} 7. Nf3 {[%emt 0:00:29]} f5 {[%emt 0:00:31]} 8. Nc3 {[%emt 0:00:11]} a6 {[%emt 0:00:04]} 9. g3 {[%emt 0:00:23]} b5 {[%emt 0:00:14]} 10. Bg2 {[%emt 0:00:42]} Bb7 {[%emt 0:00:03]} 11. O-O {[%emt 0:01:04]} O-O {[%emt 0:00:10]} 12. a3 {[%emt 0:03:56]} c5 {[%emt 0:00:41]} 13. dxc5 {[%emt 0:07:11]} Bxc5 {[%emt 0:00:30]} 14. Qe2 {[%emt 0:01:39]} Qc7 {[%emt 0:04:00]} 15. Ng5 {[%emt 0:05:39]} h6 {[%emt 0:02:39]} 16. Bxb7 {[%emt 0:18:06]} Qxb7 {[%emt 0:00:07]} 17. Nf3 {[%emt 0:00:36]} Nc6 {[%emt 0:03:52]} 18. Rad1 {[%emt 0:03:14]} Rfd8 {[%emt 0:03:23]} 19. Rxd8+ {[%emt 0:03:10]} Rxd8 {[%emt 0:00:20]} 20. Rd1 {[%emt 0:00:17]} Nd4 {[%emt 0:02:46]} 21. Nxd4 {[%emt 0:00:47]} Rxd4 {[%emt 0:00:50]} 22. Rxd4 {[%emt 0:03:39]} Bxd4 {[%emt 0:00:12]} 23. Nd1 {[%emt 0:01:36]} Qc7 {[%emt 0:05:00]} 24. a4 {[%emt 0:19:59]} Qe5 {[%emt 0:29:44]} 25. Qxe5 {[%emt 0:01:08]} Bxe5 {[%emt 0:00:05]} 26. axb5 {[%emt 0:00:12]} axb5 {[%emt 0:00:04]} 27. Kf1 {[%emt 0:00:53]} Kf8 {[%emt 0:01:24]} 28. Ke2 {[%emt 0:00:00]} Ke7 {[%emt 0:02:45]} 29. Kd3 {[%emt 0:00:16]} Kd6 {[%emt 0:02:04]} 30. b4 {[%emt 0:00:42]} h5 {[%emt 0:03:35]} 31. h3 {[%emt 0:01:42]} f4 {[%emt 0:05:54]} 32. g4 {[%emt 0:00:43]} hxg4 {[%emt 0:00:21]} 33. hxg4 {[%emt 0:00:10]} Kd5 {[%emt 0:01:26]} 34. f3 {[%emt 0:00:29]} Bd6 {[%emt 0:03:10]} 35. c3 {[%emt 0:00:19]} 1-0

[Event "Modransky Cup 2025"]
[Site "Modra"]
[Date "2025.02.22"]
[Round "5.4"]
[White "Bucor, Mark"]
[Black "Durana, Jonas"]
[Result "1/2-1/2"]
[Annotator "NA"]
[ECO "D35"]
[WhiteElo "1875"]
[BlackElo "2006"]
[PlyCount "72"]
[EventDate "2025.02.20"]
[EventCountry "SVK"]
[SourceTitle "playchess.com"]
[Source "ChessBase"]
[SourceQuality "1"]
[TimeControl "5400+30"]

1. d4 {[%emt 0:00:08]} d5 {[%emt 0:00:38]} 2. c4 {[%emt 0:00:10]} e6 {[%emt 0:00:09]} 3. Nc3 {[%emt 0:00:06]} Nf6 {[%emt 0:00:04]} 4. cxd5 {[%emt 0:00:13]} exd5 {[%emt 0:00:04]} 5. Bg5 {[%emt 0:00:11]} Be7 {[%emt 0:01:13]} 6. e3 {[%emt 0:00:08]} Be6 {[%emt 0:00:28]} 7. Bd3 {[%emt 0:00:24]} O-O {[%emt 0:05:12]} 8. Nge2 {[%emt 0:00:13]} Nbd7 {[%emt 0:09:56]} 9. Rc1 {[%emt 0:09:46]} c5 {[%emt 0:01:39]} 10. O-O {[%emt 0:09:02]} Rc8 {[%emt 0:03:28]} 11. h3 {[%emt 0:13:05]} a6 {[%emt 0:03:09]} 12. Ng3 {[%emt 0:04:56]} Re8 {[%emt 0:11:59]} 13. Qe2 {[%emt 0:05:00]} Bd6 {[%emt 0:06:00]} 14. Qf3 {[%emt 0:00:33]} h6 {[%emt 0:01:45]} 15. Bf4 {[%emt 0:07:02]} Bf8 {[%emt 0:09:19]} 16. Nf5 {[%emt 0:06:23]} Rc6 {[%emt 0:03:08]} 17. Rfd1 {[%emt 0:09:28]} c4 {[%emt 0:10:20]} 18. Bb1 {[%emt 0:00:18]} b5 {[%emt 0:00:54]} 19. Be5 {[%emt 0:03:39]} b4 {[%emt 0:05:13]} 20. Ne2 {[%emt 0:01:04]} g6 {[%emt 0:02:24]} 21. Nfg3 {[%emt 0:07:28]} Nxe5 {[%emt 0:11:29]} 22. dxe5 {[%emt 0:00:13]} Nd7 {[%emt 0:00:03]} 23. Nd4 {[%emt 0:02:59]} Rc5 {[%emt 0:02:32]} 24. Nxe6 {[%emt 0:01:32]} Rxe6 {[%emt 0:01:25]} 25. Rxd5 {[%emt 0:01:04]} Rxe5 {[%emt 0:01:35]} 26. Rcd1 {[%emt 0:00:55]} Rcxd5 {[%emt 0:02:00]} 27. Rxd5 {[%emt 0:00:13]} Qc7 {[%emt 0:00:16]} 28. Ne2 {[%emt 0:10:25]} Bg7 {[%emt 0:01:41]} 29. Nd4 {[%emt 0:03:18]} Rxd5 {[%emt 0:02:58]} 30. Qxd5 {[%emt 0:00:07]} Nb6 {[%emt 0:00:36]} 31. Qe4 {[%emt 0:01:41]} c3 {[%emt 0:00:34]} 32. Qe8+ {[%emt 0:01:39]} Kh7 {[%emt 0:00:14]} 33. Ne6 {[%emt 0:01:46]} c2 {[%emt 0:03:30]} 34. Bxc2 {[%emt 0:00:05]} Qxc2 {[%emt 0:00:06]} 35. Qxf7 {[%emt 0:00:06]} Qxb2 {[%emt 0:00:14]} 36. Nf8+ {[%emt 0:00:11]} Kh8 {[%emt 0:00:03]} 1/2-1/2

[Event "Modransky Cup 2025"]
[Site "Modra"]
[Date "2025.02.22"]
[Round "5.5"]
[White "Nosal, Tobias"]
[Black "Kapinaj, Matus"]
[Result "0-1"]
[Annotator "NA"]
[ECO "A09"]
[WhiteElo "1807"]
[BlackElo "1999"]
[PlyCount "46"]
[EventDate "2025.02.20"]
[EventCountry "SVK"]
[SourceTitle "playchess.com"]
[Source "ChessBase"]
[SourceQuality "1"]
[TimeControl "5400+30"]

1. Nf3 {[%emt 0:00:08]} c5 {[%emt 0:01:10]} 2. g3 {[%emt 0:00:35]} Nc6 {[%emt 0:00:05]} 3. Bg2 {[%emt 0:00:31]} e5 {[%emt 0:00:33]} 4. d3 {[%emt 0:03:36]} d5 {[%emt 0:02:43]} 5. c4 {[%emt 0:03:44]} d4 {[%emt 0:03:30]} 6. O-O {[%emt 0:01:17]} Bd6 {[%emt 0:01:11]} 7. e3 {[%emt 0:00:47]} Nge7 {[%emt 0:00:11]} 8. exd4 {[%emt 0:01:08]} exd4 {[%emt 0:00:39]} 9. Re1 {[%emt 0:01:04]} O-O {[%emt 0:00:24]} 10. Nbd2 {[%emt 0:01:59]} Ng6 {[%emt 0:03:52]} 11. a3 {[%emt 0:05:57]} Re8 {[%emt 0:07:26]} 12. Rb1 {[%emt 0:05:51]} Bf5 {[%emt 0:02:14]} 13. Nf1 {[%emt 0:04:25]} Qd7 {[%emt 0:00:48]} 14. Rxe8+ {[%emt 0:07:51]} Rxe8 {[%emt 0:00:07]} 15. Ng5 {[%emt 0:02:11]} Nce5 {[%emt 0:08:30]} 16. Be4 {[%emt 0:09:25]} h6 {[%emt 0:03:07]} 17. Bxf5 {[%emt 0:03:31]} Qxf5 {[%emt 0:00:11]} 18. Ne4 {[%emt 0:00:33]} Nf3+ {[%emt 0:08:56]} 19. Kg2 {[%emt 0:08:42]} Ngh4+ {[%emt 0:01:27]} 20. gxh4 {[%emt 0:10:34]} Qg4+ {[%emt 0:00:20]} 21. Neg3 {[%emt 0:05:33]} Nxh4+ {[%emt 0:00:35]} 22. Kg1 {[%emt 0:00:18]} Qxd1 {[%emt 0:00:07]} 23. Ne4 {[%emt 0:00:48]} Qf3 {[%emt 0:02:34]} 0-1

[Event "Modransky Cup 2025"]
[Site "Modra"]
[Date "2025.02.22"]
[Round "5.6"]
[White "Pongo, Aron"]
[Black "Petrik, Matus"]
[Result "1/2-1/2"]
[Annotator "NA"]
[ECO "B82"]
[WhiteElo "2030"]
[BlackElo "1880"]
[PlyCount "53"]
[EventDate "2025.02.20"]
[EventCountry "SVK"]
[SourceTitle "playchess.com"]
[Source "ChessBase"]
[SourceQuality "1"]
[TimeControl "5400+30"]

1. e4 {[%emt 0:00:05]} c5 {[%emt 0:09:52]} 2. Nf3 {[%emt 0:00:02]} e6 {[%emt 0:00:06]} 3. d4 {[%emt 0:00:15]} cxd4 {[%emt 0:00:05]} 4. Nxd4 {[%emt 0:00:02]} Nc6 {[%emt 0:00:05]} 5. Nc3 {[%emt 0:00:28]} Qc7 {[%emt 0:00:14]} 6. Be3 {[%emt 0:00:20]} a6 {[%emt 0:00:05]} 7. a3 {[%emt 0:00:09]} Nf6 {[%emt 0:00:29]} 8. f4 {[%emt 0:09:45]} d6 {[%emt 0:00:18]} 9. Qf3 {[%emt 0:01:08]} Be7 {[%emt 0:01:19]} 10. O-O-O {[%emt 0:07:56]} O-O {[%emt 0:12:00]} 11. Kb1 {[%emt 0:06:03]} Bd7 {[%emt 0:08:34]} 12. Nxc6 {[%emt 0:20:33]} Bxc6 {[%emt 0:01:32]} 13. Bd3 {[%emt 0:09:57]} b5 {[%emt 0:08:20]} 14. g4 {[%emt 0:12:57]} Rfb8 {[%emt 0:00:30]} 15. g5 {[%emt 0:01:28]} Nd7 {[%emt 0:01:57]} 16. Qh3 {[%emt 0:05:54]} b4 {[%emt 0:04:24]} 17. axb4 {[%emt 0:02:57]} Rxb4 {[%emt 0:00:31]} 18. Nd5 {[%emt 0:02:17]} exd5 {[%emt 0:11:13]} 19. exd5 {[%emt 0:00:02]} g6 {[%emt 0:00:07]} 20. dxc6 {[%emt 0:02:59]} Qxc6 {[%emt 0:01:15]} 21. Rhe1 {[%emt 0:09:10]} Bf8 {[%emt 0:01:52]} 22. Bd2 {[%emt 0:01:36]} Rxb2+ {[%emt 0:05:05]} 23. Kxb2 {[%emt 0:00:15]} Bg7+ {[%emt 0:00:04]} 24. Kc1 {[%emt 0:01:34]} Qa4 {[%emt 0:00:11]} 25. c3 {[%emt 0:01:52]} Qa3+ {[%emt 0:06:37]} 26. Kc2 {[%emt 0:00:08]} Qa2+ {[%emt 0:00:09]} 27. Kc1 {[%emt 0:00:05]} 1/2-1/2

[Event "Modransky Cup 2025"]
[Site "Modra"]
[Date "2025.02.22"]
[Round "5.7"]
[White "Oruzinsky, Juraj"]
[Black "Veres, Alex"]
[Result "1-0"]
[Annotator "ChessBase"]
[ECO "B22"]
[WhiteElo "2171"]
[BlackElo "1699"]
[PlyCount "27"]
[EventDate "2025.02.20"]
[EventCountry "SVK"]
[SourceTitle "playchess.com"]
[Source "ChessBase"]
[SourceQuality "1"]
[TimeControl "5400+30"]

1. e4 {[%emt 0:00:16]} c5 {[%emt 0:00:07]} 2. c3 {[%emt 0:00:05]} d5 {[%emt 0:00:25]} 3. exd5 {[%emt 0:00:04]} Qxd5 {[%emt 0:00:06]} 4. d4 {[%emt 0:00:06]} Nc6 {[%emt 0:01:18]} 5. Nf3 {[%emt 0:00:05]} Bg4 {[%emt 0:01:26]} 6. Be2 {[%emt 0:00:06]} e6 {[%emt 0:00:58]} 7. O-O {[%emt 0:01:48]} Nf6 {[%emt 0:00:47]} 8. h3 {[%emt 0:00:16]} Bf5 {[%emt 0:03:02]} 9. Be3 {[%emt 0:01:48]} cxd4 {[%emt 0:04:23]} 10. cxd4 {[%emt 0:01:07]} Be7 {[%emt 0:00:50]} 11. Nc3 {[%emt 0:00:07]} Qd7 {[%emt 0:00:37]} 12. Ne5 {[%emt 0:01:54]} Nxe5 {[%emt 0:01:03]} 13. dxe5 {[%emt 0:00:05]} Nd5 {[%emt 0:00:39]} 14. Bb5 {[%emt 0:00:10]} 1-0

[Event "Modransky Cup 2025"]
[Site "Modra"]
[Date "2025.02.22"]
[Round "5.8"]
[White "Skaraiev, Mykhailo"]
[Black "Hitka, Dominik"]
[Result "0-1"]
[Annotator "NA"]
[ECO "B25"]
[WhiteElo "1980"]
[BlackElo "2099"]
[PlyCount "112"]
[EventDate "2025.02.20"]
[EventCountry "SVK"]
[SourceTitle "playchess.com"]
[Source "ChessBase"]
[SourceQuality "1"]
[TimeControl "5400+30"]

1. Nf3 {[%emt 0:00:04]} c5 {[%emt 0:00:29]} 2. g3 {[%emt 0:00:22]} g6 {[%emt 0:00:10]} 3. Bg2 {[%emt 0:00:13]} Bg7 {[%emt 0:00:06]} 4. O-O {[%emt 0:00:34]} Nf6 {[%emt 0:00:07]} 5. d3 {[%emt 0:00:38]} O-O {[%emt 0:00:08]} 6. e4 {[%emt 0:01:30]} d6 {[%emt 0:00:27]} 7. Re1 {[%emt 0:00:57]} Nc6 {[%emt 0:00:09]} 8. Nc3 {[%emt 0:01:44]} a6 {[%emt 0:00:30]} 9. a4 {[%emt 0:00:25]} Rb8 {[%emt 0:00:09]} 10. h3 {[%emt 0:09:43]} b5 {[%emt 0:04:10]} 11. axb5 {[%emt 0:00:13]} axb5 {[%emt 0:00:06]} 12. e5 {[%emt 0:03:27]} dxe5 {[%emt 0:02:50]} 13. Nxe5 {[%emt 0:00:36]} Nxe5 {[%emt 0:00:34]} 14. Rxe5 {[%emt 0:00:03]} b4 {[%emt 0:03:44]} 15. Ne2 {[%emt 0:08:06]} Nd7 {[%emt 0:09:20]} 16. Re3 {[%emt 0:01:31]} Nb6 {[%emt 0:07:55]} 17. Ra7 {[%emt 0:03:24]} e5 {[%emt 0:02:33]} 18. g4 {[%emt 0:04:07]} Nd5 {[%emt 0:05:18]} 19. Rg3 {[%emt 0:04:06]} Qb6 {[%emt 0:05:36]} 20. Ra1 {[%emt 0:00:17]} Bb7 {[%emt 0:00:46]} 21. Bd2 {[%emt 0:03:52]} Bc6 {[%emt 0:03:35]} 22. Qc1 {[%emt 0:01:01]} Ra8 {[%emt 0:07:24]} 23. Rb1 {[%emt 0:00:39]} Rfe8 {[%emt 0:02:08]} 24. h4 {[%emt 0:01:48]} f6 {[%emt 0:02:38]} 25. Rh3 {[%emt 0:02:40]} Ne7 {[%emt 0:06:07]} 26. Bxc6 {[%emt 0:00:47]} Qxc6 {[%emt 0:00:11]} 27. Ng3 {[%emt 0:00:32]} Qf3 {[%emt 0:02:54]} 28. Qd1 {[%emt 0:03:50]} Qxd1+ {[%emt 0:00:14]} 29. Rxd1 {[%emt 0:00:04]} Rec8 {[%emt 0:03:26]} 30. Kg2 {[%emt 0:01:18]} Ra2 {[%emt 0:01:08]} 31. Rb1 {[%emt 0:00:24]} Nd5 {[%emt 0:02:25]} 32. Ne2 {[%emt 0:01:34]} c4 {[%emt 0:01:48]} 33. c3 {[%emt 0:05:25]} Bf8 {[%emt 0:04:18]} 34. dxc4 {[%emt 0:00:57]} Rxc4 {[%emt 0:00:41]} 35. Kf3 {[%emt 0:03:44]} e4+ {[%emt 0:04:51]} 36. Kg3 {[%emt 0:01:02]} Bd6+ {[%emt 0:01:32]} 37. Kg2 {[%emt 0:01:31]} e3 {[%emt 0:02:12]} 38. fxe3 {[%emt 0:00:45]} bxc3 {[%emt 0:00:58]} 39. Nxc3 {[%emt 0:00:58]} Nxc3 {[%emt 0:00:11]} 40. Bxc3 {[%emt 0:01:00]} Rxc3 {[%emt 0:00:10]} 41. Kf3 {[%emt 0:00:29]} Rb3 {[%emt 0:00:21]} 42. Rd1 {[%emt 0:00:20]} Bc5 {[%emt 0:00:33]} 43. Ke4 {[%emt 0:00:30]} Raxb2 {[%emt 0:00:57]} 44. Rd8+ {[%emt 0:00:20]} Kf7 {[%emt 0:01:14]} 45. Rd7+ {[%emt 0:01:09]} Ke6 {[%emt 0:01:59]} 46. Rxh7 {[%emt 0:00:21]} Re2 {[%emt 0:00:07]} 47. Rh6 {[%emt 0:02:19]} Rexe3+ {[%emt 0:00:09]} 48. Rxe3 {[%emt 0:00:14]} Rxe3+ {[%emt 0:00:10]} 49. Kf4 {[%emt 0:00:07]} Kf7 {[%emt 0:01:36]} 50. Rh7+ {[%emt 0:00:22]} Kf8 {[%emt 0:02:13]} 51. h5 {[%emt 0:01:01]} gxh5 {[%emt 0:08:19]} 52. Rxh5 {[%emt 0:01:01]} Re5 {[%emt 0:00:34]} 53. Rxe5 {[%emt 0:00:34]} Bd6 {[%emt 0:00:08]} 54. Kf5 {[%emt 0:00:36]} fxe5 {[%emt 0:00:07]} 55. g5 {[%emt 0:00:52]} Kg7 {[%emt 0:00:10]} 56. g6 {[%emt 0:00:24]} Bb8 {[%emt 0:00:13]} 0-1

[Event "Modransky Cup 2025"]
[Site "Modra"]
[Date "2025.02.22"]
[Round "5.9"]
[White "Wolak, Jan"]
[Black "Chlpek, Daniel"]
[Result "1/2-1/2"]
[Annotator "NA"]
[ECO "B40"]
[WhiteElo "1762"]
[BlackElo "2039"]
[PlyCount "44"]
[EventDate "2025.02.20"]
[EventCountry "SVK"]
[SourceTitle "playchess.com"]
[Source "ChessBase"]
[SourceQuality "1"]
[TimeControl "5400+30"]

1. e4 {[%emt 0:00:06]} c5 {[%emt 0:00:20]} 2. Nf3 {[%emt 0:00:19]} Nc6 {[%emt 0:00:13]} 3. d4 {[%emt 0:00:24]} cxd4 {[%emt 0:00:11]} 4. Nxd4 {[%emt 0:00:07]} Nf6 {[%emt 0:00:17]} 5. Nc3 {[%emt 0:00:14]} e6 {[%emt 0:00:42]} 6. Nxc6 {[%emt 0:01:21]} bxc6 {[%emt 0:00:15]} 7. Bd3 {[%emt 0:00:11]} d5 {[%emt 0:00:05]} 8. O-O {[%emt 0:00:12]} Be7 {[%emt 0:00:37]} 9. Qe2 {[%emt 0:00:35]} O-O {[%emt 0:00:53]} 10. Bd2 {[%emt 0:03:14]} Nd7 {[%emt 0:03:08]} 11. Na4 {[%emt 0:02:22]} Ne5 {[%emt 0:10:18]} 12. Rac1 {[%emt 0:09:43]} Bd7 {[%emt 0:05:35]} 13. f4 {[%emt 0:07:00]} Nxd3 {[%emt 0:05:24]} 14. cxd3 {[%emt 0:00:09]} Qb8 {[%emt 0:14:13]} 15. Be3 {[%emt 0:10:00]} Qb5 {[%emt 0:12:11]} 16. Nc5 {[%emt 0:08:54]} Bc8 {[%emt 0:00:29]} 17. e5 {[%emt 0:06:20]} a5 {[%emt 0:07:01]} 18. Rc3 {[%emt 0:07:15]} a4 {[%emt 0:02:11]} 19. Rfc1 {[%emt 0:01:30]} Rd8 {[%emt 0:05:56]} 20. Bd4 {[%emt 0:00:44]} Ba6 {[%emt 0:10:46]} 21. Qc2 {[%emt 0:14:28]} Bxc5 {[%emt 0:00:39]} 22. Rxc5 {[%emt 0:00:16]} Qxd3 {[%emt 0:00:34]} 1/2-1/2

[Event "Modransky Cup 2025"]
[Site "Modra"]
[Date "2025.02.22"]
[Round "5.10"]
[White "Ronaj, Filip"]
[Black "Galla, Richard"]
[Result "0-1"]
[Annotator "NA"]
[ECO "A84"]
[WhiteElo "1746"]
[BlackElo "1960"]
[PlyCount "66"]
[EventDate "2025.02.20"]
[EventCountry "SVK"]
[SourceTitle "playchess.com"]
[Source "ChessBase"]
[SourceQuality "1"]
[TimeControl "5400+30"]

1. c4 {[%emt 0:00:04]} f5 {[%emt 0:00:29]} 2. d4 {[%emt 0:01:01]} Nf6 {[%emt 0:00:05]} 3. Nf3 {[%emt 0:00:47]} e6 {[%emt 0:00:20]} 4. g3 {[%emt 0:01:18]} b6 {[%emt 0:00:03]} 5. Bg2 {[%emt 0:00:19]} Bb7 {[%emt 0:00:03]} 6. O-O {[%emt 0:00:29]} Be7 {[%emt 0:01:01]} 7. Qc2 {[%emt 0:00:21]} O-O {[%emt 0:00:25]} 8. Nbd2 {[%emt 0:00:11]} d6 {[%emt 0:02:02]} 9. b3 {[%emt 0:00:39]} Ne4 {[%emt 0:02:14]} 10. h4 {[%emt 0:02:27]} Nd7 {[%emt 0:00:56]} 11. Nh2 {[%emt 0:03:13]} Ndf6 {[%emt 0:01:39]} 12. Ndf3 {[%emt 0:03:54]} h6 {[%emt 0:02:02]} 13. Rd1 {[%emt 0:05:17]} Qe8 {[%emt 0:04:16]} 14. d5 {[%emt 0:05:23]} e5 {[%emt 0:02:30]} 15. Rf1 {[%emt 0:01:13]} Bc8 {[%emt 0:05:55]} 16. Bh3 {[%emt 0:00:31]} Qh5 {[%emt 0:01:51]} 17. Kg2 {[%emt 0:10:06]} g5 {[%emt 0:02:46]} 18. hxg5 {[%emt 0:02:35]} hxg5 {[%emt 0:00:18]} 19. Nxg5 {[%emt 0:01:50]} Nxg5 {[%emt 0:00:12]} 20. Bxg5 {[%emt 0:00:18]} Qxg5 {[%emt 0:00:06]} 21. f4 {[%emt 0:01:01]} exf4 {[%emt 0:01:17]} 22. Rxf4 {[%emt 0:00:23]} Ne4 {[%emt 0:02:04]} 23. Qd3 {[%emt 0:01:34]} Bd7 {[%emt 0:02:34]} 24. Raf1 {[%emt 0:00:25]} Rf6 {[%emt 0:01:33]} 25. R1f3 {[%emt 0:01:03]} Raf8 {[%emt 0:00:34]} 26. Kf1 {[%emt 0:04:04]} Rh6 {[%emt 0:06:06]} 27. g4 {[%emt 0:06:09]} Rxh3 {[%emt 0:00:24]} 28. Rxe4 {[%emt 0:04:17]} Rxf3+ {[%emt 0:00:22]} 29. exf3 {[%emt 0:00:24]} fxe4 {[%emt 0:00:06]} 30. Qxe4 {[%emt 0:00:04]} Bf6 {[%emt 0:01:16]} 31. Qe1 {[%emt 0:01:15]} Be5 {[%emt 0:00:12]} 32. Qf2 {[%emt 0:00:20]} Qf4 {[%emt 0:00:20]} 33. Kg1 {[%emt 0:00:55]} Bd4 {[%emt 0:00:08]} 0-1

[Event "Modransky Cup 2025"]
[Site "Modra"]
[Date "2025.02.22"]
[Round "5.11"]
[White "Povysil, Peter"]
[Black "Hudak, Michal"]
[Result "1-0"]
[Annotator "NA"]
[ECO "D00"]
[WhiteElo "1890"]
[BlackElo "1823"]
[PlyCount "59"]
[EventDate "2025.02.20"]
[EventCountry "SVK"]
[SourceTitle "playchess.com"]
[Source "ChessBase"]
[SourceQuality "1"]
[TimeControl "5400+30"]

1. f4 {[%emt 0:00:07]} d5 {[%emt 0:00:12]} 2. Nf3 {[%emt 0:00:18]} Nf6 {[%emt 0:00:23]} 3. e3 {[%emt 0:01:45]} e6 {[%emt 0:01:27]} 4. d4 {[%emt 0:00:38]} c5 {[%emt 0:02:00]} 5. c3 {[%emt 0:00:13]} c4 {[%emt 0:18:27]} 6. b3 {[%emt 0:00:59]} b5 {[%emt 0:02:10]} 7. a4 {[%emt 0:01:29]} Bd7 {[%emt 0:03:54]} 8. axb5 {[%emt 0:01:09]} Bxb5 {[%emt 0:00:55]} 9. bxc4 {[%emt 0:10:19]} dxc4 {[%emt 0:00:35]} 10. Bxc4 {[%emt 0:00:23]} Bxc4 {[%emt 0:05:26]} 11. Qa4+ {[%emt 0:00:33]} Nbd7 {[%emt 0:00:28]} 12. Qxc4 {[%emt 0:00:06]} Be7 {[%emt 0:17:24]} 13. O-O {[%emt 0:03:15]} O-O {[%emt 0:00:04]} 14. Qe2 {[%emt 0:20:17]} Qc7 {[%emt 0:09:46]} 15. c4 {[%emt 0:02:39]} Nb6 {[%emt 0:00:12]} 16. c5 {[%emt 0:01:18]} Nbd5 {[%emt 0:00:23]} 17. Bd2 {[%emt 0:00:20]} Ne4 {[%emt 0:01:55]} 18. Ba5 {[%emt 0:01:22]} Qb7 {[%emt 0:04:29]} 19. Na3 {[%emt 0:03:31]} Qb3 {[%emt 0:02:19]} 20. Rfb1 {[%emt 0:02:59]} Qxe3+ {[%emt 0:00:34]} 21. Qxe3 {[%emt 0:00:06]} Nxe3 {[%emt 0:00:05]} 22. Re1 {[%emt 0:00:11]} Nxc5 {[%emt 0:02:05]} 23. Rxe3 {[%emt 0:01:03]} Nb7 {[%emt 0:01:13]} 24. Nc4 {[%emt 0:10:37]} Rfc8 {[%emt 0:01:40]} 25. Ncd2 {[%emt 0:03:07]} Rc6 {[%emt 0:06:31]} 26. Rb3 {[%emt 0:06:27]} Nxa5 {[%emt 0:06:29]} 27. Rxa5 {[%emt 0:00:08]} Bd8 {[%emt 0:00:48]} 28. Rc5 {[%emt 0:02:26]} Rd6 {[%emt 0:00:32]} 29. Nc4 {[%emt 0:05:06]} Rd7 {[%emt 0:00:31]} 30. Rcb5 {[%emt 0:01:02]} 1-0

[Event "Modransky Cup 2025"]
[Site "Modra"]
[Date "2025.02.22"]
[Round "5.12"]
[White "Hanzel, Richard"]
[Black "Kukla, Tomas"]
[Result "1-0"]
[Annotator "NA"]
[ECO "D44"]
[WhiteElo "1668"]
[BlackElo "1856"]
[PlyCount "71"]
[EventDate "2025.02.20"]
[EventCountry "SVK"]
[SourceTitle "playchess.com"]
[Source "ChessBase"]
[SourceQuality "1"]
[TimeControl "5400+30"]

1. d4 {[%emt 0:00:56]} Nf6 {[%emt 0:00:32]} 2. c4 {[%emt 0:00:51]} c6 {[%emt 0:00:21]} 3. Nf3 {[%emt 0:00:09]} d5 {[%emt 0:00:06]} 4. Nc3 {[%emt 0:00:04]} e6 {[%emt 0:00:05]} 5. Bg5 {[%emt 0:01:14]} dxc4 {[%emt 0:02:16]} 6. e4 {[%emt 0:00:19]} b5 {[%emt 0:00:05]} 7. e5 {[%emt 0:00:04]} h6 {[%emt 0:00:04]} 8. Bh4 {[%emt 0:00:07]} g5 {[%emt 0:00:07]} 9. Nxg5 {[%emt 0:00:15]} hxg5 {[%emt 0:00:07]} 10. Bxg5 {[%emt 0:00:04]} Nbd7 {[%emt 0:00:12]} 11. g3 {[%emt 0:00:11]} Bb7 {[%emt 0:00:11]} 12. Bg2 {[%emt 0:00:07]} Qb6 {[%emt 0:00:28]} 13. exf6 {[%emt 0:00:06]} c5 {[%emt 0:01:59]} 14. d5 {[%emt 0:01:13]} O-O-O {[%emt 0:00:11]} 15. O-O {[%emt 0:00:07]} b4 {[%emt 0:01:58]} 16. Rb1 {[%emt 0:00:35]} Bh6 {[%emt 0:14:34]} 17. Bxh6 {[%emt 0:00:26]} Rxh6 {[%emt 0:00:08]} 18. b3 {[%emt 0:00:13]} Nxf6 {[%emt 0:03:46]} 19. bxc4 {[%emt 0:07:43]} Qa5 {[%emt 0:11:21]} 20. Qa4 {[%emt 0:25:18]} Qb6 {[%emt 0:08:17]} 21. Ne4 {[%emt 0:02:28]} Nxe4 {[%emt 0:03:09]} 22. Bxe4 {[%emt 0:00:10]} exd5 {[%emt 0:01:57]} 23. Bxd5 {[%emt 0:00:35]} Bxd5 {[%emt 0:02:03]} 24. cxd5 {[%emt 0:00:05]} Rdh8 {[%emt 0:11:36]} 25. Rfe1 {[%emt 0:06:28]} Qc7 {[%emt 0:20:57]} 26. Re8+ {[%emt 0:01:44]} Kb7 {[%emt 0:05:11]} 27. Rbe1 {[%emt 0:05:44]} Rxe8 {[%emt 0:00:24]} 28. Qxe8 {[%emt 0:00:40]} Kb6 {[%emt 0:08:23]} 29. Re7 {[%emt 0:02:00]} Qd6 {[%emt 0:00:23]} 30. Qxf7 {[%emt 0:00:47]} Rf6 {[%emt 0:01:03]} 31. Rb7+ {[%emt 0:05:42]} Ka6 {[%emt 0:00:07]} 32. Rxa7+ {[%emt 0:00:16]} Kb5 {[%emt 0:00:06]} 33. Qe8+ {[%emt 0:05:08]} Kc4 {[%emt 0:00:14]} 34. Qe2+ {[%emt 0:01:41]} Kc3 {[%emt 0:01:47]} 35. Re7 {[%emt 0:01:00]} Qxd5 {[%emt 0:02:30]} 36. Re3+ {[%emt 0:00:16]} 1-0

[Event "Modransky Cup 2025"]
[Site "Modra"]
[Date "2025.02.22"]
[Round "5.14"]
[White "Ondreicka, Roman"]
[Black "Kolibik, Jan"]
[Result "1-0"]
[Annotator "NA"]
[ECO "A05"]
[WhiteElo "1842"]
[BlackElo "1683"]
[PlyCount "53"]
[EventDate "2025.02.20"]
[EventCountry "SVK"]
[SourceTitle "playchess.com"]
[Source "ChessBase"]
[SourceQuality "1"]
[TimeControl "5400+30"]

1. Nf3 {[%emt 0:00:32]} Nf6 {[%emt 0:00:24]} 2. g3 {[%emt 0:00:10]} b6 {[%emt 0:00:31]} 3. Bg2 {[%emt 0:00:12]} Bb7 {[%emt 0:00:12]} 4. d3 {[%emt 0:00:16]} g6 {[%emt 0:00:42]} 5. O-O {[%emt 0:00:09]} Bg7 {[%emt 0:00:14]} 6. c3 {[%emt 0:00:14]} O-O {[%emt 0:00:39]} 7. e4 {[%emt 0:00:22]} d6 {[%emt 0:00:49]} 8. h3 {[%emt 0:01:35]} c5 {[%emt 0:00:36]} 9. Be3 {[%emt 0:00:09]} Nbd7 {[%emt 0:01:06]} 10. Nh2 {[%emt 0:00:55]} d5 {[%emt 0:03:28]} 11. Nd2 {[%emt 0:01:13]} dxe4 {[%emt 0:00:18]} 12. dxe4 {[%emt 0:00:21]} Qc7 {[%emt 0:03:28]} 13. Qc2 {[%emt 0:02:17]} Rad8 {[%emt 0:00:34]} 14. Rad1 {[%emt 0:00:55]} Qb8 {[%emt 0:04:01]} 15. Rfe1 {[%emt 0:02:51]} e5 {[%emt 0:01:47]} 16. Ndf1 {[%emt 0:15:12]} Qa8 {[%emt 0:05:57]} 17. f3 {[%emt 0:01:05]} Nb8 {[%emt 0:00:55]} 18. Re2 {[%emt 0:02:18]} Nc6 {[%emt 0:00:28]} 19. Red2 {[%emt 0:00:29]} Rxd2 {[%emt 0:00:31]} 20. Rxd2 {[%emt 0:00:05]} Rd8 {[%emt 0:00:13]} 21. Bg5 {[%emt 0:00:40]} h6 {[%emt 0:02:37]} 22. Bxf6 {[%emt 0:00:07]} Bxf6 {[%emt 0:01:54]} 23. Ne3 {[%emt 0:00:30]} Rxd2 {[%emt 0:00:30]} 24. Qxd2 {[%emt 0:00:05]} Qd8 {[%emt 0:00:24]} 25. Nd5 {[%emt 0:00:44]} Bg7 {[%emt 0:00:29]} 26. Ng4 {[%emt 0:01:36]} Kh7 {[%emt 0:00:40]} 27. Nge3 {[%emt 0:01:05]} 1-0